Cogmind - Beta 16.1 @@@ ROGUE MODE // 2026.03.31 @ 20:30:54 Player: KURIIRI Result: Self-destructed Performance ------------- Evolutions (1) 500 Regions Visited (4) 800 Robots Destroyed (74) 370 Value Destroyed (1684) 1684 Prototype IDs (6) 120 Alien Tech Used (0) 0 Bonus (327) 327 TOTAL SCORE: 3801 Bonus ------- High Alert Combat Kills 165 Follower Combat Kills 232 Friendly Fire -70 Cogmind --------- Core Integrity 322/400 Matter 300/300 Energy 280/280 System Corruption 2% Temperature Cool (0) Movement Rolling (120) Ox2 Location -9/Mines Parts ------- > --- POWER (1) -------- Heavy Ion Engine > --- PROPULSION (2) --- Light Treads Compact Wheel > --- UTILITY (4) ------ Heat Sink Large Storage Unit Improved Terrain Scanner Hardened Light Armor Plating > --- WEAPON (2) ------- Improved EM Shotgun Improved EM Shotgun > --- INVENTORY (15) --- Heavy Ion Engine Light Treads Light Treads Light Treads Wheel Improved Heat Sink Experimental Sensor Array Hardened Light Armor Plating Hardened Light Armor Plating Light EM Pulse Cannon Beam Cannon Beam Cannon Advanced Beam Cannon Rocket Launcher Peak State ------------ > --- POWER ------------ Heavy Ion Engine > --- PROPULSION ------- Light Treads Compact Wheel > --- UTILITY ---------- Heat Sink Large Storage Unit Improved Terrain Scanner Hardened Light Armor Plating > --- WEAPON ----------- Improved EM Shotgun Improved EM Shotgun > --- INVENTORY -------- Heavy Ion Engine Light Treads Light Treads Light Treads Wheel Improved Heat Sink Experimental Sensor Array Hardened Light Armor Plating Hardened Light Armor Plating Light EM Pulse Cannon Beam Cannon Beam Cannon Advanced Beam Cannon Rocket Launcher [Rating: 21] Favorites ----------- Power Light Ion Engine Engine Light Ion Engine Propulsion Light Treads Treads Light Treads Leg Aluminum Leg Wheel Compact Wheel Utility Heat Sink Device Heat Sink Storage Large Storage Unit Hackware Hacking Suite Protection Hardened Light Armor Plating Weapon Beam Cannon Energy Gun Improved EM Shotgun Energy Cannon Beam Cannon Ballistic Gun Improved Assault Rifle Launcher Rocket Launcher Build | -11 -10 -10 -9 -9 ------- Run | Yrd Mat Min Mat Min Slots Evolved 2 | . . . 2 . Power . | . . . . . Propulsion . | . . . . . Utility 2 | . . . 2 . Weapon . | . . . . . Parts Attached 36 | 4 10 . 22 . Power 3 | . 2 . 1 . Engine 3 | . 2 . 1 . Core . | . . . . . Reactor . | . . . . . Propulsion 10 | 2 1 . 7 . Treads 6 | 2 1 . 3 . Leg 2 | . . . 2 . Wheel 2 | . . . 2 . Hover . | . . . . . Flight . | . . . . . Utility 8 | 1 3 . 4 . Device 3 | 1 1 . 1 . Storage 2 | . 2 . . . Processor . | . . . . . Hackware 1 | . . . 1 . Protection 2 | . . . 2 . Artifact . | . . . . . Weapon 15 | 1 4 . 10 . Energy Gun 6 | 1 1 . 4 . Energy Cannon 7 | . 3 . 4 . Ballistic Gun 1 | . . . 1 . Ballistic Cannon . | . . . . . Launcher 1 | . . . 1 . Special Weapon . | . . . . . Impact Weapon . | . . . . . Slashing Weapon . | . . . . . Piercing Weapon . | . . . . . Special Melee Weapon . | . . . . . Unidentified Prototypes 5 | . . . 5 . Corrupted Parts 1 | . . . 1 . System Corruption 1 | . . . 1 . Parts Lost 4 | . 1 . 3 . Power . | . . . . . Propulsion . | . . . . . Utility 2 | . . . 2 . Weapon 2 | . 1 . 1 . Highest Loss Streak 1 | . 1 . 1 . To Critical Strikes . | . . . . . Average Backups 11 | 5 9 12 13 14 Power . | 1 1 1 . 1 Propulsion 4 | 3 4 5 3 4 Utility 2 | . 1 3 3 4 Weapon 3 | 1 2 3 5 5 Tool/Special . | . . . . . Unused Backups 13 | 5 1 . 1 6 Power 2 | 1 . . . 1 Propulsion 4 | 2 . . 1 1 Utility 5 | 1 . . . 4 Weapon 2 | 1 1 . . . Tool/Special . | . . . . . Average Slot Usage (%) 98 | . 97 100 98 100 Engine 12 | . 13 14 11 11 Treads 22 | . 27 28 15 11 Wheel 2 | . . . 6 11 Device 16 | . 13 14 19 22 Storage 12 | . 14 14 11 11 Protection 3 | . . . 9 11 Energy Gun 3 | . 5 . 3 22 Energy Cannon 21 | . 21 28 17 . Peak Build Rating 21 | 9 9 9 21 21 Average Rating 11 | 6 7 8 17 21 On Entrance 10 | 6 9 8 9 21 Avg Prop Armor Cover (%) 8 | . . . 8 8 Naked Turns . | . . . . . Heaviest Build 43 | 15 32 30 43 41 Greatest Support 40 | 40 40 40 40 16 Greatest Overweight (x) 9 | . 9 . 3 2 Average Overweight (x) . | . . . 1 2 Largest Inventory Capacity 15 | 8 15 15 15 15 Average Capacity 13 | 8 12 15 15 15 Most Carried 15 | 6 12 13 15 14 Average Carried 11 | 5 9 12 13 14 Final Capacity 15 | 8 15 15 15 15 Final Carried 14 | 4 12 13 14 14 Class Distribution -------------------- 85% | Mutant 14% | Scavenger-Mutant Dominant Class ---------------- Mutant | -10/Materials Mutant | -10/Mines Mutant | -9/Materials Mutant | -9/Mines Resources | -11 -10 -10 -9 -9 ----------- Run | Yrd Mat Min Mat Min Matter Collected 960 | 200 300 . 460 . Remotely . | . . . . . Salvage Created 2766 | 111 932 133 1590 . Parts 150 | 3 46 9 92 . Haulers Intercepted 7 | . 2 . 5 . Recyclers Shooed 1 | . 1 . . . Parts Field Recycled . | . . . . . Retrieved Matter . | . . . . . Parts Self-Destructed . | . . . . . Prevented . | . . . . . Parts Restored . | . . . . . Kills | -11 -10 -10 -9 -9 ------- Run | Yrd Mat Min Mat Min Combat Hostiles Destroyed 48 | . 12 5 31 . Guns 5 | . 4 . 1 . Cannons 22 | . 7 5 10 . AOE 17 | . . . 17 . Classes Destroyed 10 | 2 5 . 3 . Tunneler 3 | 1 . . 2 . Hauler 7 | . 2 . 5 . Recycler 8 | 1 3 . 4 . Operator 2 | . 2 . . . Watcher 6 | . 3 . 3 . Swarmer 16 | . 3 3 10 . Grunt 23 | . 9 2 12 . Brawler 1 | . . . 1 . Protector 1 | . . . 1 . Sentry 7 | . . . 7 . Best Kill Streak 7 | 1 4 2 7 . Combat Bots Only 7 | . 3 2 7 . Max Kills in Single Turn 5 | 1 1 1 5 . Gunslinging . | . . . . . Exploded 5 | . . . 5 . Melee . | . . . . . Uniques/NPCs Destroyed . | . . . . . Combat | -11 -10 -10 -9 -9 -------- Run | Yrd Mat Min Mat Min Hostile Shots Fired 136 | . 47 32 57 . Missed 43 | . 13 9 21 . Hits 93 | . 34 23 36 . Projectile 93 | . 34 23 36 . Critical Strikes 1 | . . 1 . . Damage Taken 1127 | . 432 173 522 . Core 167 | . 62 27 78 . Absorbed by Shields . | . . . . . Regen/Repaired (Parts) 11 | . . . 11 . Core Remaining (%) 82 | 100 . 64 . . Volleys Fired 136 | 7 52 13 64 . Largest 2 | 2 2 2 2 . Hottest 128 | 90 120 120 128 . Shots Fired 255 | 14 101 26 114 . Gun 51 | 14 27 . 10 . Cannon 194 | . 74 26 94 . Launcher 10 | . . . 10 . Special . | . . . . . Kinetic . | . . . . . Thermal 173 | 7 85 26 55 . Explosive 10 | . . . 10 . Electromagnetic 72 | 7 16 . 49 . Robot Hit Streak 19 | 7 8 4 19 . Robot Miss Streak 3 | 2 3 2 3 . Penetration Max . | . . . . . Secondary Targets . | . . . . . Shots Hit Robots 150 | 9 57 12 72 . Core Hits 87 | 3 28 5 51 . Critical Kills 3 | . 1 . 2 . Critical Parts Destroyed . | . . . . . Critical Strikes 6 | . 3 . 3 . Burn 2 | . 2 . . . Meltdown 3 | . 1 . 2 . Corrupt 1 | . . . 1 . Melee Attacks . | . . . . . Impact . | . . . . . Slashing . | . . . . . Piercing . | . . . . . Sneak Attacks . | . . . . . Combat Hostiles . | . . . . . Follow-up Attacks . | . . . . . Damage Inflicted 3811 | 106 1001 264 2440 . Guns 409 | 106 180 . 123 . Cannons 2348 | . 773 264 1311 . Explosions 1046 | . 45 . 1001 . Melee . | . . . . . Ramming 8 | . 3 . 5 . Kinetic . | . . . . . Thermal 1953 | 66 867 264 756 . Explosive 859 | . . . 859 . Electromagnetic 991 | 40 131 . 820 . Impact . | . . . . . Slashing . | . . . . . Piercing . | . . . . . Highest Corruption 2 | . . . 2 2 Average Corruption 1 | . . . 1 2 Corruption Purged . | . . . . . Corruption Blocked . | . . . . . Effects 4 | . . . 4 . Message Errors 2 | . . . 2 . Matter Fused 1 | . . . 1 . Data Loss (minor) 1 | . . . 1 . Overload Shots . | . . . . . Overflow Damage 47 | . 7 . 40 . Projectiles 17 | . 7 . 10 . Explosions 30 | . . . 30 . Melee . | . . . . . Knockbacks . | . . . . . Impact . | . . . . . Kinetic . | . . . . . Secondary . | . . . . . Self-Inflicted Damage 50 | . . . 50 . Shots 2 | . . . 2 . Rammed 2 | . 1 . 1 . Targets Rammed 2 | . 1 . 1 . Kicked . | . . . . . Crushed . | . . . . . Highest Temperature 273 | 90 198 180 273 . Average Temperature 57 | 41 64 50 54 . Received Heat Transfer 312 | . 159 . 153 . Siege Activations . | . . . . . Martial Activations . | . . . . . Shielding Activations . | . . . . . Robots Disrupted . | . . . . . Combat Hostiles . | . . . . . Robots Corrupted 2 | . . . 2 . Combat Hostiles 2 | . . . 2 . Parts Fried 2 | . 1 . 1 . Impact Corruptions . | . . . . . Robots Melted 3 | . 1 . 2 . Combat Hostiles 2 | . 1 . 1 . Parts Melted 13 | . 4 2 7 . Heat Transferred 4075 | 162 2024 555 1334 . Parts Sabotaged . | . . . . . Parts Stolen . | . . . . . Parts Stripped . | . . . . . Power Chain Reactions 4 | . 1 . 3 . Alert | -11 -10 -10 -9 -9 ------- Run | Yrd Mat Min Mat Min Maximum Alert Level 3 | . . . 3 1 Low Security (%) 73 | 100 100 100 34 . Level 1 5 | . . . 9 100 Level 2 15 | . . . 41 . Level 3 5 | . . . 14 . Level 4 . | . . . . . Level 5 . | . . . . . High Security . | . . . . . Max Security . | . . . . . Peak Influence 828 | 5 131 94 828 316 Initial 316 | . . . . 316 Average 174 | 1 55 26 384 304 Influence Increases 2223 | 10 489 284 1440 . Destroy 0b10 Robot/C 1220 | . 240 160 820 . Destroy 0b10 Robot/NC 155 | 10 60 . 85 . Destroy Leader 280 | . 70 30 180 . Allied During Kill 122 | . . 35 87 . Successful Hack 69 | . 25 . 44 . Select Force Hacks 120 | . 60 . 60 . Disable Machine 135 | . 15 45 75 . Destroy Structure 107 | . 4 14 89 . Lose Combat Pursuer 15 | . 15 . . . Influence Decreases 1937 | 10 489 284 628 526 Entered New Map 496 | . . . . 496 Time Decay 1329 | 10 479 284 526 30 Lost Part 40 | . 10 . 30 . Lost Ally 72 | . . . 72 . Squads Dispatched 8 | . 3 . 5 . Investigation 6 | . 2 . 4 . Extermination . | . . . . . Reinforcement 1 | . 1 . . . Assault 1 | . . . 1 . Garrison . | . . . . . Intercept . | . . . . . Searches Triggered . | . . . . . Construction Impeded . | . . . . . Haulers Reinforced . | . . . . . Active Scanning Responses . | . . . . . Cargo Convoy Interrupts . | . . . . . Stealth | -11 -10 -10 -9 -9 --------- Run | Yrd Mat Min Mat Min Distress Signals 4 | . 1 . 3 . Communications Jammed . | . . . . . Distress Signals . | . . . . . Times Spotted 74 | . 20 7 47 . Peak Tracking Total 7 | . 3 3 7 . Tactical Retreats 1 | . 1 . . . Traps | -11 -10 -10 -9 -9 ------- Run | Yrd Mat Min Mat Min Traps Triggered 12 | . 10 . 2 . Indirectly . | . . . . . Trap Hack Attempts . | . . . . . Triggered . | . . . . . Disarmed . | . . . . . Reprogrammed . | . . . . . Reused . | . . . . . Traps Extracted . | . . . . . Installed . | . . . . . Triggered . | . . . . . Machines | -11 -10 -10 -9 -9 ---------- Run | Yrd Mat Min Mat Min Machines Disabled 9 | . 1 3 5 . Max in Single Turn 3 | . 1 3 1 . Machines Repaired . | . . . . . Machines Dismantled . | . . . . . Machines Sabotaged . | . . . . . Overloaded Fab Kills . | . . . . . Hacking | -11 -10 -10 -9 -9 --------- Run | Yrd Mat Min Mat Min Machines Accessed 21 | . 8 . 13 . Terminals 15 | . 6 . 9 . Fabricators . | . . . . . Repair Stations 1 | . . . 1 . Recycling Units 4 | . 2 . 2 . Scanalyzers 1 | . . . 1 . Garrison Access . | . . . . . Total Hacks 60 | . 20 . 40 . Successful 32 | . 12 . 20 . Failed 27 | . 7 . 20 . Catastrophic 3 | . . . 3 . Database Lockouts 1 | . 1 . . . Manual 44 | . 17 . 27 . Terminals 47 | . 18 . 29 . Fabricators . | . . . . . Repair Stations 3 | . . . 3 . Recycling Units 4 | . 2 . 2 . Scanalyzers 6 | . . . 6 . Garrison Access . | . . . . . Terminal Hacks 6 | . 3 . 3 . Robot Analysis 4 | . 1 . 3 . Terminal Index 1 | . 1 . . . Locate Traps 1 | . 1 . . . Fabricator Hacks . | . . . . . Repair Station Hacks 2 | . . . 2 . Scan Component 1 | . . . 1 . Repair 1 | . . . 1 . Recycling Unit Hacks . | . . . . . Scanalyzer 5 | . . . 5 . Insert Component 1 | . . . 1 . Analyze 1 | . . . 1 . Retrieve Study 3 | . . . 3 . Garrison Access Hacks . | . . . . . Unauthorized Hacks 19 | . 9 . 10 . Terminals 15 | . 7 . 8 . Botnet 3 | . 1 . 2 . Operators 2 | . 1 . 1 . Skim 10 | . 5 . 5 . Fabricators . | . . . . . Repair Stations . | . . . . . Recycling Units 4 | . 2 . 2 . Tunnel 4 | . 2 . 2 . Scanalyzers . | . . . . . Garrison Access . | . . . . . Data Cores Recovered 1 | . 1 . . . Used . | . . . . . Hacking Detections 15 | . 5 . 10 . Full Trace Events 1 | . . . 1 . Feedback Events . | . . . . . Feedback Blocked . | . . . . . Robot Schematics Acquired . | . . . . . Robots Built . | . . . . . Authchips . | . . . . . Time . | . . . . . Total Robot Build Rating . | . . . . . Part Schematics Acquired 1 | . . . 1 . Parts Built . | . . . . . Authchips . | . . . . . Time . | . . . . . Total Part Build Rating . | . . . . . Part Studies Acquired 3 | . . . 3 . Parts Repaired 1 | . . . 1 . Time 136 | . . . 136 . Parts Recycled . | . . . . . Recycled Matter . | . . . . . Retrieved Matter . | . . . . . Retrieved Components . | . . . . . Parts Scanalyzed 1 | . . . 1 . Part Schematics Acquired 1 | . . . 1 . Parts Damaged 1 | . . . 1 . Bothacking | -11 -10 -10 -9 -9 ------------ Run | Yrd Mat Min Mat Min Used RIF Installer . | . . . . . Robots Hacked . | . . . . . Non-combat . | . . . . . Combat . | . . . . . Robot Hacks Applied . | . . . . . Relay Couplers Released . | . . . . . Fabnet Peak Effective % . | . . . . . Robots Rewired . | . . . . . Allies Hacked . | . . . . . Hacks Repelled . | . . . . . Allies | -11 -10 -10 -9 -9 -------- Run | Yrd Mat Min Mat Min Total Allies 5 | . . 5 . . Largest Group 5 | . . 5 4 . Highest-Rated Group 86 | . . 86 71 . Highest-Rated Ally 31 | . . 31 31 . Total Orders . | . . . . . Ally Attacks 92 | . . 14 78 . Total Damage 1104 | . . 154 950 . Kills 16 | . . 3 13 . Allies Corrupted . | . . . . . Allies Melted . | . . . . . Intel | -11 -10 -10 -9 -9 ------- Run | Yrd Mat Min Mat Min Active Infowar (turns) 1206 | 7 229 . 905 65 Terrain 1206 | 7 229 . 905 65 Robot Analysis Total 4 | . 1 . 3 . Derelict Logs Recovered 2 | . . 2 . . Drone Launches . | . . . . . Drone Recoveries . | . . . . . Exploration | -11 -10 -10 -9 -9 ------------- Run | Yrd Mat Min Mat Min Turns Passed 3917 | 66 1330 988 1468 65 Spaces Moved 2001 | 30 591 591 735 54 Core 4 | . 4 . . . Treads 1499 | 8 587 591 313 . Legs 24 | 22 . . 2 . Wheels 474 | . . . 420 54 Hover . | . . . . . Flight . | . . . . . Fastest Speed 120 | 120 160 160 120 120 Average Speed 151 | 130 162 160 139 120 Slowest Speed 500 | 160 500 160 260 120 Overloaded Moves . | . . . . . Propulsion Burnouts . | . . . . . Robots Hopped . | . . . . . Potential Cave-ins . | . . . . . Cave-ins Triggered . | . . . . . Exploration Rate (%) 58 | 4 86 98 79 24 Regions Visited 4 Branch Regions 2 Pre-discovered Areas 6 | . 2 . 3 1 Known Exits Taken 2 | . . 1 1 . Unknown Exits Taken 2 | 1 1 . . . Scrap Searched 2 | . . 1 . 1 Spaces Dug 19 | . . . 19 . Terrain Destroyed 111 | . 4 14 93 . Melee . | . . . . . Projectile . | . . . . . AOE 111 | . 4 14 93 . Terrain Rammed . | . . . . . Walls Destroyed . | . . . . . Machines Disabled . | . . . . . Actions | -11 -10 -10 -9 -9 --------- Run | Yrd Mat Min Mat Min Total 2614 | 42 851 608 1059 54 Wait 370 | . 167 4 199 . Move 1997 | 29 590 590 734 54 Hop . | . . . . . Pick Up 19 | . 9 1 9 . Fast Attach 30 | 1 19 . 10 . Attach 6 | . 1 . 5 . Detach 6 | . 2 . 4 . Swap 29 | 3 6 . 20 . Drop 19 | 2 4 . 13 . Fire 136 | 7 52 13 64 . Melee . | . . . . . Ram 1 | . . . 1 . Kick . | . . . . . Crush 1 | . 1 . . . Escape Stasis . | . . . . . Rewire . | . . . . . Trap . | . . . . . Miscellaneous . | . . . . . Route ------- -11/Scrapyard -10/Materials (discovered 6 exits: *Mat x3 / [*Min x2] / Sub) -10/Mines (discovered 3 exits: *Mat x2 / *Sub) -9/Materials (discovered 5 exits: *Mat x3 / *Min x2) -9/Mines (discovered 1 exit: *Mat) History --------- Turn | Location | Event 13 | -11/Scrapyard | Discovered new exit (range 2) 67 | -11/Scrapyard | Entered Materials 301 | -10/Materials | Discovered new exit (range 12) 317 | -10/Materials | Build established: Mutant 371 | -10/Materials | Discovered new exit (range 16) 673 | -10/Materials | Discovered new exit (range 16) 779 | -10/Materials | Central database locked down 932 | -10/Materials | Discovered new exit (range 7) 1130 | -10/Materials | Identified exit to Subcaves 1174 | -10/Materials | Discovered new exit (range 11) 1217 | -10/Materials | Learned 2 Mines zone layouts 1389 | -10/Materials | Learned Storage emergency access door positions 1397 | -10/Materials | Entered Mines 1398 | -10/Mines | Identified exit to Materials 1620 | -10/Mines | Learned Materials security intel 1716 | -10/Mines | Found DCF Scrap (10 items) 1793 | -10/Mines | Learned location of 1 exit from Materials 1809 | -10/Mines | Assisted by bots powering up and referring to "LRC-V3" 1917 | -10/Mines | Found a damaged Exp. Sensor Array with a note attached 1921 | -10/Mines | Found Prototype Device 2147 | -10/Mines | A weapon hastily lodged in a ceiling crevice suddenly fell to the ground 2385 | -10/Mines | Entered Materials 2385 | -9/Materials | Accompanied by 4 allies 2385 | -9/Materials | Evolved 2 slots: Utility x2 2386 | -9/Materials | Identified exit to Mines 2390 | -9/Materials | Led the pair of lost Derelicts to an unsafe place 2615 | -9/Materials | Discovered new exit (range 10) 2821 | -9/Materials | Discovered exit to Mines (range 16) 3052 | -9/Materials | Destroyed 7 combat bots 3081 | -9/Materials | Discovered new exit (range 5) 3309 | -9/Materials | Identified Exp. Sensor Array 3411 | -9/Materials | Identified exit to Materials 3492 | -9/Materials | Repaired Broken Exp. Sensor Array 3522 | -9/Materials | Learned Storage stockpile data 3585 | -9/Materials | First assault squad dispatched 3635 | -9/Materials | Loaded intel: 14 trap records 3686 | -9/Materials | Learned location of 2 exits from Materials 3853 | -9/Materials | Entered Mines 3913 | -9/Mines | Learned location of Storage (-7) 3916 | -9/Mines | Discovered exit to Materials (range 4) 3918 | -9/Mines | Self-destructed Last Messages --------------- Station. 03862_ VJ-95Z(g): "Hehe, this'll put a wrench in their mining defense operations..." 03862_ VJ-95Z(g) slips into the shadows. 03873_ Searching scrap... 03873_ Found Maul. 03873_ Found 59 Matter. 03878_ K-01 Serf collects debris. 03913_ A derelict emerges from the shadows: "Are any of them following you? I'm here trying to lose some heat after our second raid on Storage failed. Whatever you do stay away from that place, they've tightened security following our previous successful raids." World map updated: -7/Storage. 03915_ KM-EWQ(g): "We scattered so the Unaware couldn't effectively use their advantage in numbers, and I suggest you do the same." 03915_ KM-EWQ(g) slips back into the shadows. 03916_ EXIT=FOUND: MATERIALS Map ----- +----------------------------------------------------+ | ??????????????????????????????????????? | | ??????????????????????????????????????? | | ??????????????????????????????????????? | | ??????????????????????????????????????? | | ??????????????????????????????????????? | | ??????????????????????????????????????? | | ???????????????????????#??????????????? | | ??????????????????????????????????????? | | ??????????????????????????????????????? | | ??????????????????????????????????????? | | ??????????????????????????????????????? | | ??????????????????????????????????????? | | ??????????????????????????????????????? | | ??????????????????????????????????????? | | ??????????????????????????????????????? | | ??????????????????#???????????????????? | | ?????????????????###??????????????????? | | ?????????????????# ????#?????????????? | | ?????????????###?# #??????????????????? | | ????????????## ### #??????????????????? | | ??????????### ## ###???????#????????? | | ?????????## #????????????????? | | ?????##### #????????????????? | | ?????# #### #????####????????? | | ?????# #??# ##### ##???????? | | ?????# #### ##??# @ #???????? | | ?????# ## #???###### #??#????? | | #????# ?# #######??# #???????? | | ?????#?### ??# ##?# < #????#??? | | ?????????#???# #### ##???????? | | ?????????????###### #####????????? | | ??????????????????# #?#?????????? | | ??????????????????## #?????###?#?? | | ???????????????????## ##??## ##??? | | ????????????????????# ##???# #??? | | ?????????? ????## ##????# #??? | | ???????? ### ##????# ##?? | | ???????? ##??## ##? | | ???????? #### #?? | | ????????# % #?? | | ?????????######## ## / #?? | | ????????????????# ###?## ### | | ????????????????# ?????## #### #?? | | ????????????????#??????### ##???# ##?? | | ????????????????? ##?????# #?#???###??? | | ?????????????????## ##### #??????????? | | ????????????#????# ^ ##########?? | | ?????????????????# #^ # #?? | | ????????????#?????? ?# #?? | | ??????????????????# # #?? | +----------------------------------------------------+ Best States ------------- Heat Dissipation 48 Energy Generation 14 Energy Capacity 280 Matter Stores 300 Matter Capacity 300 Sight Range 16 Terrain Scan Range 16 Terrain Scan Density 10 Armor Coverage 150 Evasion (%) 55 Recoil Reduction 2 Offensive Hacking 10 Item Schematics ----------------- Exp. Sensor Array | -9/Materials | Scanalyzed Robot Schematics ------------------ None Fabricated ------------ Nothing Repaired ---------- Exp. Sensor Array | 62% | -9/Materials | Broken Studied --------- Com. Wheel | -9/Materials | Hacked Wheel | -9/Materials | Hacked Lgt. EM Pulse Cannon | -9/Materials | Hacked Alien Tech Used ----------------- None Achievements -------------- None Challenges ------------ None Game ------ Seed DrainedWardroneSpecial Manual? 0 Play Time 00:23:23 Cumulative 378.2 hours Start 2026.03.31 @ 20:07:41 End 2026.03.31 @ 20:30:54 Sessions 1 Manual Loads 0 Difficulty Rogue Special Mode None Game No. 310 Rogue 274 Adventurer 36 Explorer 0 Win Type - Total 5 Types 2/0/0/1/0/0/0/2/0/0 Lore% 71 Gallery% 66 Achievement% 54 Wizard Run 0 Options --------- Layout 1 ASCII 0 Keyboard 0 Movement Numpad Keybinds 0 Fullscreen 1 Font 48/Smallcaps Map View 50x35 Zoom Use 0% Tactical HUD 1 Map Filters NONE Filters NONE Steam 1 RUN: fe1d76e0-baa2-4044-a069-732e931bc70a